bitfinex-derivatives/quotes_SOLF0:USTF0_20251216
["timestamp","ask_amount","ask_price","bid_price","bid_amount"]
[1765892704976,0.05426097,127.62,127.59,3.19495459]
[1765892705182,0.05426097,127.62,127.61,1.89923808]
[1765892705479,0.05426097,127.62,127.61,3.14]
[1765892705983,109.6732,127.68,127.62,3.14]
[1765892706176,109.6732,127.68,127.58,66.06]
[1765892706177,112.96,127.65,127.58,66.06]
[1765892706473,112.9332,127.68,127.61,3.14]
[1765892706776,7.0527,127.64,127.63,0.05274101]
[1765892706964,10.3127,127.64,127.63,0.05274101]
[1765892708377,7.0527,127.64,127.63,0.05274101]
[1765892708578,10.3127,127.64,127.63,0.05274101]
[1765892709780,10.36547969,127.66,127.63,0.05274101]
[1765892710480,7.0522,127.65,127.63,0.05274101]
[1765892711074,3.26,127.64,127.63,0.05274101]
[1765892711478,7.0522,127.65,127.63,0.05274101]
[1765892711972,3.26,127.64,127.63,0.05274101]
[1765892712981,7.0522,127.65,127.63,0.05274101]
[1765892713179,7.10527969,127.66,127.63,0.05274101]
[1765892713677,7.0522,127.65,127.63,0.05274101]
[1765892713879,10.3122,127.65,127.63,0.05274101]
[1765892714074,7.0522,127.65,127.63,0.05274101]
[1765892715082,0.05357969,127.66,127.63,0.05274101]
[1765892716082,3.31357969,127.66,127.63,0.05274101]
[1765892716783,10.36517969,127.66,127.63,0.05274101]
[1765892717482,0.05357969,127.66,127.64,5.06340279]
[1765892717782,0.05357969,127.66,127.65,1.92340279]
[1765892717973,0.05357969,127.66,127.63,3.19274101]
[1765892718169,0.05357969,127.66,127.65,1.92324902]
[1765892719175,0.05357969,127.66,127.65,5.06324902]
[1765892719381,0.05357969,127.66,127.65,3.14]
[1765892719684,0.00357969,127.66,127.65,3.14]
[1765892721273,10.3079,127.73,127.67,3.14]
[1765892721473,10.3079,127.73,127.65,111.2551]
[1765892721474,10.3079,127.73,127.68,5.06287679]
[1765892721679,3.26,127.73,127.68,3.14]
[1765892722084,7.0482,127.72,127.69,1.92269981]
[1765892722285,0.05086553,127.72,127.69,1.98207914]
[1765892722487,0.05086553,127.72,127.69,0.05937933]
[1765892722782,0.05086553,127.72,127.7,1.92129238]
[1765892723181,7.09906553,127.72,127.7,1.92007166]
[1765892723386,0.05086553,127.72,127.71,3.14]
[1765892725782,3.31086553,127.72,127.69,0.05937933]
[1765892725981,3.31086553,127.72,127.7,1.91672529]
[1765892726381,0.05086553,127.72,127.7,1.91672529]
[1765892726580,0.05086553,127.72,127.71,5.05672529]
[1765892726786,0.05086553,127.72,127.71,3.14]
[1765892727089,0.05086553,127.72,127.69,3.19937933]
[1765892727387,0.05086553,127.72,127.71,1.91509231]
[1765892728878,0.05086553,127.72,127.71,5.05509231]
[1765892729080,0.05086553,127.72,127.71,3.14]
[1765892729681,0.05086553,127.72,127.69,3.19937933]
[1765892729986,0.05086553,127.72,127.7,1.9127873]
[1765892730574,7.09916553,127.72,127.7,1.9127873]
[1765892730775,7.09916553,127.72,127.7,5.0527873]
[1765892730974,7.09916553,127.72,127.7,3.14]
[1765892731178,0.05086553,127.72,127.71,1.91372009]
[1765892732186,3.31086553,127.72,127.69,0.05937933]
[1765892732389,3.26,127.71,127.69,0.05937933]
[1765892732790,112.918,127.7,127.64,3.14]
[1765892732992,3.26,127.68,127.66,1.91525148]
[1765892733190,3.26,127.67,127.61,3.14]
[1765892733497,3.26,127.67,127.64,1.91749365]
[1765892733694,3.26,127.67,127.63,1.91749365]
[1765892733899,7.0523,127.65,127.64,0.05490567]
[1765892734081,0.05436479,127.66,127.64,3.31490567]
[1765892734398,0.05436479,127.66,127.64,0.05490567]
[1765892735479,3.29436479,127.66,127.64,0.05490567]
[1765892736586,10.34596479,127.66,127.64,0.05490567]
[1765892737799,7.10596479,127.66,127.64,0.05490567]
[1765892738203,0.05436479,127.66,127.64,0.05490567]
[1765892738497,0.05436479,127.66,127.64,3.31490567]
[1765892739090,0.05436479,127.66,127.64,0.05490567]
[1765892739294,3.24,127.65,127.64,0.05490567]
[1765892739592,10.34596479,127.66,127.64,0.05490567]
[1765892739788,3.24,127.65,127.64,0.05490567]
[1765892739994,3.24,127.63,127.58,69.26]
[1765892740188,3.24,127.62,127.6,1.92954206]
[1765892740387,3.24,127.62,127.55,76.3174]
[1765892740590,10.17672506,127.64,127.59,5.19110203]
[1765892740892,0.05237648,127.63,127.6,5.24652492]
[1765892741090,0.05237648,127.63,127.6,3.31542289]
[1765892741501,0.05237648,127.63,127.62,3.26]
[1765892742796,7.0509,127.68,127.64,3.26]
[1765892743000,7.0509,127.68,127.65,5.19299608]
[1765892743300,7.0509,127.68,127.65,3.26]
[1765892743500,10.2898,127.7,127.66,1.9343661]
[1765892743689,10.2898,127.7,127.67,1.9343661]
[1765892743891,7.0499,127.69,127.67,0.05188466]
[1765892744195,10.2899,127.69,127.67,0.05188466]
[1765892744892,3.24,127.68,127.67,0.05188466]
[1765892745294,10.2899,127.69,127.67,0.05188466]
[1765892746096,3.24,127.68,127.67,0.05188466]
[1765892746796,7.0515,127.66,127.62,3.26]
[1765892747002,3.24,127.65,127.64,1.93848197]
[1765892747204,3.24,127.65,127.61,69.26]
[1765892747399,3.24,127.65,127.62,1.94031284]
[1765892747590,7.0527,127.64,127.62,1.94031284]
[1765892747799,0.05613886,127.64,127.62,1.9971723]
[1765892748103,0.05613886,127.64,127.62,0.05685946]
[1765892748300,0.05613886,127.64,127.62,1.99786865]
[1765892748505,3.29613886,127.64,127.62,0.05685946]
[1765892748704,3.24,127.63,127.62,1.99792374]
[1765892749005,3.24,127.63,127.62,0.05685946]
[1765892749589,3.24,127.61,127.56,76.3165]
[1765892749791,3.24,127.61,127.59,1.94189922]
[1765892750396,10.2949,127.6,127.56,3.26]
[1765892750598,10.2949,127.6,127.53,66.0]
[1765892750599,3.29488859,127.59,127.57,0.04980346]
[1765892751008,113.0173,127.56,127.5,3.26]
[1765892751198,3.24,127.55,127.52,1.94237344]
[1765892752006,3.2989997,127.55,127.52,0.0591595]
[1765892752504,0.0589997,127.55,127.52,0.0591595]
[1765892752810,0.0589997,127.55,127.53,1.9391081]
[1765892753398,3.2989997,127.55,127.53,1.9391081]
[1765892753601,3.2989997,127.55,127.52,0.0591595]
[1765892753900,7.0583,127.54,127.52,0.0591595]
[1765892754101,10.2983,127.54,127.52,0.0591595]
[1765892754310,3.24,127.53,127.52,0.0591595]
[1765892755208,3.2989997,127.55,127.52,0.0591595]
[1765892755910,0.0589997,127.55,127.53,1.93485973]
[1765892756202,0.0589997,127.55,127.53,5.19485973]
[1765892756505,0.0589997,127.55,127.54,5.19485973]
[1765892756706,0.0589997,127.55,127.52,3.3191595]
[1765892756909,0.0589997,127.55,127.54,1.93361744]
[1765892758304,3.2989997,127.55,127.52,0.0591595]
[1765892758613,3.2989997,127.55,127.53,1.93211982]
[1765892758911,3.24,127.54,127.52,0.0591595]
[1765892759406,10.2985,127.54,127.52,0.0591595]
[1765892759610,3.24,127.53,127.52,0.0591595]
[1765892759912,10.2985,127.54,127.52,0.0591595]
[1765892760308,0.0589997,127.55,127.52,3.3191595]
[1765892760612,0.0589997,127.55,127.54,1.9306502]
[1765892760911,0.0589997,127.55,127.54,5.1906502]
[1765892761106,0.0589997,127.55,127.54,3.26]
[1765892762104,109.6979,127.66,127.54,3.26]
[1765892762105,119.91347568,127.63,127.54,3.26]
[1765892762414,3.24,127.62,127.58,1.9294782]
[1765892762715,3.24,127.62,127.54,3.26]
[1765892763009,0.05062176,127.59,127.57,5.24754427]
[1765892763314,3.24,127.66,127.58,3.26]
[1765892763510,3.24,127.66,127.6,1.92881323]
[1765892763717,3.24,127.66,127.61,4.99881323]
[1765892763915,3.24,127.66,127.62,1.92853394]
[1765892764118,10.2919,127.66,127.62,1.92853394]
[1765892764317,10.2919,127.66,127.63,0.05892018]
[1765892764318,0.05006978,127.65,127.63,0.05892018]
[1765892765019,0.05006978,127.65,127.63,3.12892018]
[1765892765411,0.05006978,127.65,127.64,1.92846549]
[1765892765617,0.05006978,127.65,127.63,3.12892018]
[1765892765813,3.26006978,127.65,127.63,0.05892018]
[1765892766025,0.05006978,127.65,127.63,0.05892018]
[1765892766427,7.10216978,127.65,127.63,0.05892018]
[1765892766623,10.31216978,127.65,127.63,0.05892018]
[1765892766825,3.21,127.64,127.63,0.05892018]
[1765892767623,3.21,127.6,127.5,116.77437568]
[1765892767831,3.21,127.57,127.55,3.612e-05]
[1765892768128,3.21,127.57,127.51,10.1296]
[1765892768630,109.7339,127.61,127.53,3.11991685]
[1765892768631,0.05802499,127.55,127.53,3.11991685]
[1765892768820,0.05525538,127.55,127.53,3.12497427]
[1765892769827,0.05525538,127.55,127.54,3.07]
[1765892770032,0.05525538,127.55,127.53,3.12497427]
[1765892771326,7.0546,127.61,127.54,3.07]
[1765892771526,3.21,127.64,127.58,5.0018862]
[1765892771727,7.0533,127.63,127.6,1.9318862]
[1765892771933,3.21,127.64,127.61,1.9314858]
[1765892772133,112.9074,127.66,127.61,1.9314858]
[1765892772326,3.21,127.66,127.62,5.0014858]
[1765892772626,0.05593817,127.65,127.63,0.04942303]
[1765892775828,0.05593817,127.65,127.63,3.11942303]
[1765892776135,0.05593817,127.65,127.64,5.00530072]
[1765892776337,0.05593817,127.65,127.64,3.07]
[1765892777635,0.05593817,127.65,127.63,3.11942303]
[1765892778027,0.05593817,127.65,127.64,1.93691591]
[1765892778833,0.05593817,127.65,127.64,1.93694611]
[1765892779735,0.05593817,127.65,127.64,5.00694611]
[1765892779926,0.05593817,127.65,127.64,3.07]
[1765892781132,0.05593817,127.65,127.63,0.04942303]
[1765892781739,0.05593817,127.65,127.64,1.93649252]
[1765892784040,0.05593817,127.65,127.63,0.04942303]
[1765892784636,0.05593817,127.65,127.63,3.11942303]
[1765892786139,0.05593817,127.65,127.64,1.93598471]
[1765892786338,3.26593817,127.65,127.63,0.04942303]
[1765892786850,0.05593817,127.65,127.64,1.93592692]
[1765892787441,0.05593817,127.65,127.64,5.00592692]
[1765892787744,0.05593817,127.65,127.64,3.07]
[1765892788147,0.05593817,127.65,127.63,3.11942303]
[1765892788351,0.05593817,127.65,127.64,1.93573711]
[1765892788747,0.05593817,127.65,127.63,0.04942303]
[1765892789245,7.10803817,127.65,127.64,1.93585656]
[1765892790050,7.10803817,127.65,127.63,0.04942303]
[1765892790243,7.10803817,127.65,127.64,1.93607695]
[1765892790441,7.10803817,127.65,127.63,0.04942303]
[1765892790650,10.31803817,127.65,127.63,0.04942303]
[1765892791744,0.05593817,127.65,127.64,1.93649844]
[1765892792446,0.05593817,127.65,127.63,0.04942303]
[1765892792851,3.26593817,127.65,127.63,0.04942303]
[1765892793350,3.21,127.64,127.63,0.04942303]
[1765892793748,3.22,127.61,127.57,3.07]
[1765892793944,3.22,127.61,127.59,1.93696663]
[1765892794254,7.0553,127.59,127.58,1.93696663]
[1765892794447,10.2753,127.59,127.57,1.93731426]
[1765892794751,0.0557035,127.59,127.57,5.13234749]
[1765892794953,0.0557035,127.59,127.57,0.05503323]
[1765892795452,0.0557035,127.59,127.58,1.93722777]
[1765892795652,0.0557035,127.59,127.57,3.19503323]
[1765892795846,0.0557035,127.59,127.57,0.05503323]
[1765892796048,10.3312035,127.59,127.57,0.05503323]
[1765892796849,0.0557035,127.59,127.58,5.07776978]
[1765892797147,0.0557035,127.59,127.58,3.14]
[1765892798155,0.0557035,127.59,127.57,0.05503323]
[1765892799056,3.22,127.58,127.57,0.05503323]
[1765892800454,10.3312035,127.59,127.57,0.05503323]
[1765892800655,3.22,127.58,127.57,0.05503323]
[1765892800956,3.22,127.55,127.49,3.14]
[1765892801155,3.22,127.55,127.51,1.94133572]
[1765892801359,7.0573,127.56,127.53,3.14]
[1765892801562,179.0866,127.58,127.5,10.2001]
[1765892801858,0.05262159,127.55,127.53,1.99278923]
[1765892802049,0.05262159,127.55,127.53,0.05184716]
[1765892802240,7.11032159,127.55,127.53,1.99280569]
[1765892802446,3.22,127.54,127.53,0.05184716]
[1765892803052,7.0591,127.53,127.47,69.2]
[1765892803251,7.0591,127.53,127.51,1.94111771]
[1765892803450,10.2791,127.53,127.51,1.94111771]
[1765892804051,10.33765616,127.53,127.51,1.99968345]
[1765892804355,10.33765616,127.53,127.51,0.05856574]
[1765892804562,10.33765616,127.53,127.51,1.99913818]
[1765892804853,0.05855616,127.53,127.51,3.19856574]
[1765892805158,3.27855616,127.53,127.51,0.05856574]
[1765892805756,7.11775616,127.53,127.51,0.05856574]
[1765892805954,10.33775616,127.53,127.51,0.05856574]
[1765892807046,7.11775616,127.53,127.51,0.05856574]
[1765892807252,0.05855616,127.53,127.51,3.19856574]
[1765892807453,0.05855616,127.53,127.52,1.93777532]
[1765892807661,3.27855616,127.53,127.51,0.05856574]
[1765892809151,0.05855616,127.53,127.51,0.05856574]
[1765892809451,7.11735616,127.53,127.51,0.05856574]
[1765892810157,0.05855616,127.53,127.51,3.19856574]
[1765892810550,0.05855616,127.53,127.52,5.07549397]
[1765892810859,112.98,127.58,127.53,3.14]
[1765892811054,112.9676,127.6,127.55,3.14]
[1765892811254,112.9676,127.6,127.56,5.07479209]
[1765892811461,10.2752,127.6,127.57,1.93480135]
[1765892811651,3.22,127.59,127.57,1.93480135]
[1765892811853,3.27064004,127.59,127.57,0.05619148]
[1765892812362,7.0559,127.58,127.57,0.05619148]
[1765892812666,10.2759,127.58,127.57,0.05619148]
[1765892815261,7.0582,127.54,127.5,3.14]
[1765892815466,7.0582,127.54,127.53,1.93502177]
[1765892815765,7.0582,127.54,127.5,3.14]
[1765892815947,7.0582,127.54,127.52,1.93515795]
[1765892816463,0.05699013,127.54,127.52,5.13215142]
[1765892816756,0.05699013,127.54,127.52,3.19699347]
[1765892816963,0.05699013,127.54,127.52,0.05699347]
[1765892817158,10.33519013,127.54,127.52,0.05699347]
[1765892817349,3.22,127.53,127.52,0.05699347]
[1765892818672,113.0311,127.52,127.45,3.14]
[1765892818958,3.22,127.51,127.48,1.93453575]
[1765892819360,10.2807,127.5,127.48,1.93453575]
[1765892819552,10.33700022,127.5,127.48,1.9803442]
[1765892819753,10.33700022,127.5,127.48,0.04580845]
[1765892819754,7.11700022,127.5,127.48,0.04580845]
[1765892819961,7.0614,127.48,127.43,3.14]
[1765892820160,109.8233,127.51,127.43,3.14]
[1765892820373,179.1711,127.52,127.43,3.14]
[1765892820549,109.8235,127.51,127.45,3.14]
[1765892820752,3.22,127.49,127.45,3.14]
[1765892820954,0.05053097,127.48,127.46,1.93396571]
[1765892821151,0.05053097,127.48,127.47,3.14]
[1765892821355,113.0109,127.55,127.48,3.14]
[1765892821561,112.985,127.58,127.51,3.14]
[1765892821768,112.985,127.58,127.54,3.14]
[1765892821960,112.985,127.58,127.48,109.8418]
[1765892822263,112.985,127.58,127.54,1.93249846]
[1765892822466,0.05100439,127.57,127.55,5.12302943]
[1765892822664,0.05100439,127.57,127.56,3.14]
[1765892822858,69.36,127.64,127.56,3.14]
[1765892823063,7.054,127.62,127.59,1.93231777]
[1765892823264,7.054,127.62,127.59,5.07231777]
[1765892823568,7.0528,127.64,127.59,3.14]
[1765892823872,7.0528,127.64,127.56,109.7711]
[1765892823873,0.05074558,127.63,127.61,5.21269325]
[1765892824066,0.05074558,127.63,127.62,3.28]
[1765892824265,0.05074558,127.63,127.61,0.05442093]
[1765892824574,0.05074558,127.63,127.62,1.93244904]
[1765892824768,0.05074558,127.63,127.51,453.3828]
[1765892824769,112.9971,127.6,127.51,3.28]
[1765892824976,112.9605,127.64,127.54,3.28]
[1765892825266,3.25,127.66,127.59,3.28]
[1765892825570,109.6805,127.68,127.59,3.28]
[1765892825765,112.9305,127.68,127.63,1.93270577]
[1765892825966,112.9305,127.68,127.62,1.9798202]
[1765892825967,0.05459647,127.65,127.62,1.9798202]
[1765892826168,3.30459647,127.65,127.62,0.04711443]
[1765892826572,0.05459647,127.65,127.63,1.9330778]
[1765892827273,0.05459647,127.65,127.63,5.2130778]
[1765892827465,0.05459647,127.65,127.64,1.9330778]
[1765892827666,0.05459647,127.65,127.62,3.32711443]
[1765892827873,0.05459647,127.65,127.63,1.93304855]
[1765892828366,0.05459647,127.65,127.63,5.21304855]
[1765892828566,0.05459647,127.65,127.64,1.93304855]
[1765892828770,0.05459647,127.65,127.63,3.28]
[1765892829076,0.05459647,127.65,127.64,1.93304583]
[1765892831276,109.6366,127.73,127.64,4.84]
[1765892831481,109.6366,127.73,127.63,109.7135]
[1765892831482,3.25,127.74,127.67,5.21268963]
[1765892831780,112.8808,127.73,127.67,3.28]
[1765892831969,3.25,127.71,127.64,3.28]
[1765892832168,3.25,127.71,127.67,1.93261451]
[1765892832376,7.0495,127.7,127.67,1.93261451]
[1765892832568,0.05316893,127.7,127.68,0.05867052]
[1765892833172,7.10266893,127.7,127.68,0.05867052]
[1765892833588,3.25,127.69,127.68,0.05867052]
[1765892835282,0.05316893,127.7,127.68,3.33867052]
[1765892835570,0.05316893,127.7,127.69,5.21102357]
[1765892835775,0.05316893,127.7,127.69,3.28]
[1765892837768,3.30316893,127.7,127.68,0.05867052]
[1765892837965,0.05316893,127.7,127.69,3.28]
[1765892839573,7.0467,127.75,127.7,3.28]
[1765892839776,7.0467,127.75,127.71,5.20576152]
[1765892840083,7.0472,127.74,127.71,3.28]
[1765892840486,0.05982629,127.74,127.71,0.05713316]
[1765892840783,7.0477,127.73,127.71,1.98150989]
[1765892840976,7.0477,127.73,127.71,0.05713316]
[1765892841175,7.0477,127.73,127.71,1.9815264]
[1765892841376,0.05982629,127.74,127.72,1.92315662]
[1765892841571,0.05982629,127.74,127.72,5.20315662]
[1765892841772,0.05982629,127.74,127.72,3.28]
[1765892841976,0.05982629,127.74,127.73,5.20301202]
[1765892842174,0.05982629,127.74,127.73,1.92301202]
[1765892842374,0.05982629,127.74,127.73,1.92144582]
[1765892843290,3.30982629,127.74,127.73,1.92144582]
[1765892843487,3.30982629,127.74,127.71,0.05713316]
[1765892843800,3.25,127.73,127.71,0.05713316]
[1765892844593,3.25,127.72,127.71,0.05713316]
[1765892845478,7.0476,127.73,127.71,0.05713316]
[1765892845479,10.2976,127.73,127.71,0.05713316]
[1765892846084,7.0476,127.73,127.71,3.33713316]
[1765892846489,7.0476,127.73,127.72,1.91903061]
[1765892846687,7.0476,127.73,127.71,3.33713316]
[1765892846888,10.2976,127.73,127.71,0.05713316]
[1765892847096,7.0476,127.73,127.71,0.05713316]
[1765892847591,3.25,127.72,127.71,0.05713316]
[1765892848180,10.2976,127.73,127.71,0.05713316]
[1765892848484,3.25,127.72,127.71,0.05713316]
[1765892848884,7.05,127.69,127.65,3.28]
[1765892849085,7.05,127.69,127.67,1.91941125]
[1765892849293,3.25,127.72,127.67,5.19941125]
[1765892849595,7.0492,127.71,127.68,5.19979797]
[1765892849783,7.0492,127.71,127.7,1.91979797]
[1765892849986,7.0492,127.71,127.69,0.0595648]
[1765892851092,3.25,127.7,127.69,0.0595648]
[1765892854290,7.0492,127.71,127.69,0.0595648]
[1765892854591,10.3192,127.71,127.69,0.0595648]
[1765892855692,7.0492,127.71,127.69,0.0595648]
[1765892856082,0.05837452,127.72,127.69,3.2295648]
[1765892856279,0.05837452,127.72,127.71,3.17]
[1765892858297,3.27,127.77,127.73,3.17]
[1765892858995,10.3154,127.77,127.73,3.17]
[1765892859195,0.05498363,127.76,127.74,5.15102404]
[1765892859500,0.05498363,127.76,127.74,3.22623463]
[1765892861293,7.10098363,127.76,127.74,3.22623463]
[1765892862008,7.10098363,127.76,127.74,0.05623463]
[1765892862201,10.37098363,127.76,127.74,0.05623463]
[1765892862504,0.05498363,127.76,127.74,3.22623463]
[1765892863791,0.05498363,127.76,127.75,5.09908177]
[1765892863993,0.05498363,127.76,127.75,3.17]
[1765892864390,0.05498363,127.76,127.74,3.22623463]
[1765892864996,7.10098363,127.76,127.74,3.22623463]
[1765892865604,0.05498363,127.76,127.75,5.10218251]
[1765892865803,0.05498363,127.76,127.75,3.17]
[1765892866000,7.0442,127.8,127.76,3.17]
[1765892866201,3.27,127.83,127.78,3.17]
[1765892866395,5.74291599,127.82,127.78,3.17]
[1765892866596,7.0438,127.8,127.78,3.17]
[1765892867196,7.09675435,127.8,127.78,3.22196484]
[1765892867911,5.44340173,127.81,127.78,3.22196484]
[1765892868104,126.86748318,127.87,127.8,3.17]
[1765892868300,126.86748318,127.87,127.81,5.1055957]
[1765892868603,3.27,127.86,127.81,3.17]
[1765892869004,0.05976552,127.85,127.82,3.22149634]
[1765892869211,10.3117,127.84,127.82,0.05149634]
[1765892870708,3.27,127.83,127.82,0.05149634]
[1765892871403,17.25348691,127.84,127.82,0.05149634]
[1765892872105,7.0417,127.84,127.82,0.05149634]
[1765892872310,7.0417,127.84,127.82,3.22149634]
[1765892872509,3.27,127.83,127.82,0.05149634]
[1765892876010,10.3121,127.83,127.82,0.05149634]
[1765892876624,10.3121,127.83,127.76,69.17]
[1765892876806,3.27,127.8,127.78,1.93377002]
[1765892877305,10.3143,127.79,127.78,1.93377002]
[1765892877504,3.27,127.79,127.77,1.93377002]
[1765892877716,3.32977395,127.79,127.77,1.98796325]
[1765892877918,7.10407395,127.79,127.78,1.93404339]
[1765892878919,7.10407395,127.79,127.77,3.22419323]
[1765892879116,6.94178691,127.84,127.79,3.17]
[1765892879325,10.21178691,127.84,127.8,5.1042363]
[1765892879618,10.21178691,127.84,127.8,3.17]
[1765892880020,3.27,127.83,127.78,3.17]
[1765892880218,0.05968325,127.82,127.79,5.16207237]
[1765892880518,10.3132,127.81,127.8,1.93425848]
[1765892880719,3.27,127.8,127.73,3.17]
[1765892880909,3.27,127.77,127.75,9.45e-06]
[1765892881619,3.27,127.77,127.69,65.98]
[1765892881620,3.27,127.76,127.72,3.17]
[1765892881813,0.05586576,127.75,127.73,0.05475069]
[1765892882318,10.37256576,127.75,127.73,0.05475069]
[1765892883319,0.05586576,127.75,127.73,3.22475069]
[1765892883627,0.05586576,127.75,127.74,5.10592052]
[1765892883825,0.05586576,127.75,127.74,3.17]
[1765892884729,7.10246576,127.75,127.73,0.05475069]
[1765892885020,3.17,127.74,127.73,0.05475069]
[1765892885712,3.17,127.72,127.65,3.3]
[1765892885917,6.94178691,127.72,127.69,1.93689081]
[1765892886109,10.11178691,127.72,127.69,1.93689081]
[1765892886320,3.17,127.71,127.69,1.93689081]
[1765892886518,112.8325,127.7,127.64,3.3]
[1765892886737,3.22582897,127.68,127.66,0.05886936]
[1765892887120,0.05582897,127.68,127.66,3.35886936]
[1765892887822,3.22582897,127.68,127.66,0.05886936]
[1765892888223,3.17,127.63,127.59,3.3]
[1765892888426,3.17,127.63,127.61,1.93581325]
[1765892888935,10.2223,127.65,127.61,5.23581325]
[1765892889128,3.21976153,127.64,127.62,1.99324899]
[1765892889331,0.04976153,127.64,127.62,0.05743574]
[1765892889541,0.04976153,127.64,127.62,5.29208184]
[1765892889826,10.27256153,127.64,127.62,0.05743574]
[1765892890026,3.17,127.63,127.62,0.05743574]
[1765892890225,10.1193119,127.63,127.62,0.05743574]
[1765892891519,7.10256153,127.64,127.62,0.05743574]
[1765892891520,0.04976153,127.64,127.62,0.05743574]
[1765892891728,0.04976153,127.64,127.63,5.23155656]
[1765892892034,0.04976153,127.64,127.63,3.3]
[1765892893536,0.04976153,127.64,127.62,0.05743574]
[1765892893727,0.04976153,127.64,127.63,1.93031821]
[1765892894131,3.21976153,127.64,127.62,0.05743574]
[1765892894336,0.04976153,127.64,127.62,0.05743574]
[1765892894842,0.04976153,127.64,127.62,3.35743574]
[1765892895127,0.04976153,127.64,127.62,0.05743574]
[1765892895332,10.27276153,127.64,127.62,0.05743574]
[1765892895529,3.17,127.63,127.62,0.05743574]
[1765892897225,3.17,127.58,127.55,66.0]
[1765892897423,3.17,127.58,127.56,1.92719214]
[1765892898032,3.17,127.57,127.55,9.214e-05]
[1765892898231,3.22448483,127.57,127.55,0.0434671]
[1765892898435,0.05448483,127.57,127.55,3.3434671]
[1765892899035,0.05448483,127.57,127.56,1.92523305]
[1765892899432,0.05448483,127.57,127.55,0.0434671]
[1765892900926,7.11118483,127.57,127.55,0.0434671]
[1765892901130,10.28118483,127.57,127.55,0.0434671]
[1765892902535,3.17,127.56,127.55,0.0434671]
[1765892902745,3.17,127.56,127.49,69.34]
[1765892902746,7.0581,127.55,127.49,69.34]
[1765892902955,10.2281,127.55,127.53,1.91903095]
[1765892903352,3.17,127.55,127.53,1.91903095]
[1765892903551,10.2267,127.57,127.54,1.91903095]
[1765892903752,10.27885379,127.57,127.51,3.3]
[1765892904055,10.27885379,127.57,127.54,1.91740179]
[1765892904242,3.17,127.56,127.54,1.91740179]
[1765892904560,7.00146569,127.57,127.5,3.3]
[1765892904858,10.28213627,127.55,127.53,1.91612838]
[1765892905558,3.17,127.53,127.49,66.04]
[1765892905741,3.22421956,127.52,127.51,1.91508241]
[1765892906144,10.28351956,127.52,127.5,1.91508241]
[1765892906366,10.28351956,127.52,127.44,66.08]
[1765892906367,119.9421119,127.51,127.44,66.08]
[1765892906652,7.0622,127.47,127.43,3.3]
[1765892906848,0.05891806,127.46,127.43,3.3]
[1765892907048,0.05891806,127.46,127.43,113.1855]
[1765892907248,7.0604,127.5,127.46,3.3]
[1765892907451,7.0604,127.5,127.47,1.91192649]
[1765892908055,2.18,127.51,127.48,1.91192649]
[1765892908266,0.05762791,127.5,127.48,1.91192649]
[1765892908555,0.05762791,127.5,127.47,3.35327615]
[1765892909157,0.05762791,127.5,127.48,1.91022151]
[1765892909346,0.05762791,127.5,127.48,1.90870316]
[1765892909543,7.0577,127.55,127.49,3.3]
[1765892909756,2.18,127.57,127.51,1.90868089]
[1765892909949,2.18,127.57,127.48,109.842]
[1765892909950,2.18,127.57,127.53,3.3]
[1765892910157,2.24,127.55,127.5,3.3]
[1765892910449,7.0588,127.53,127.51,1.90814245]
[1765892910654,2.29094342,127.53,127.51,0.04971203]
[1765892910955,9.2994,127.52,127.51,0.04971203]
[1765892911153,112.0222,127.5,127.44,3.3]
[1765892911358,2.19,127.49,127.46,1.90696848]
[1765892911655,2.19,127.46,127.41,3.3]
[1765892911843,2.19,127.45,127.41,3.3]
[1765892912049,7.0644,127.43,127.42,0.05871833]
[1765892912247,2.19,127.43,127.41,0.05291116]
[1765892912549,0.0582022,127.44,127.41,0.05291116]
[1765892913054,0.0582022,127.44,127.42,5.20589759]
[1765892913253,0.0582022,127.44,127.43,3.3]
[1765892913447,0.0582022,127.44,127.43,5.20589759]
[1765892913654,0.0582022,127.44,127.41,3.13291116]
[1765892913959,2.2582022,127.44,127.41,0.05291116]
[1765892914460,9.2644,127.43,127.41,0.05291116]
[1765892915160,0.0582022,127.44,127.41,3.13291116]
[1765892915549,2.2582022,127.44,127.41,0.05291116]